bitfinex-derivatives/quotes_SOLF0:USTF0_20250329
["timestamp","ask_amount","ask_price","bid_price","bid_amount"]
[1743214252622,7.77419545,129.67,129.66,27.1]
[1743214256427,0.05869545,129.67,129.63,8.69423038]
[1743214256618,0.05869545,129.67,129.64,27.1]
[1743214257021,7.7167,129.65,129.64,27.1]
[1743214257328,0.05869545,129.67,129.63,8.69423038]
[1743214257520,0.05869545,129.67,129.64,27.1]
[1743214257826,7.7173,129.64,129.63,8.69423038]
[1743214258028,7.7173,129.64,129.63,27.1561533]
[1743214258421,7.7173,129.64,129.63,0.0561533]
[1743214259624,7.719,129.62,129.61,27.1]
[1743214260328,8.63807708,129.63,129.6,27.1]
[1743214260829,8.69169382,129.63,129.6,27.15642665]
[1743214261124,8.69169382,129.63,129.57,27.1]
[1743214261125,8.63807708,129.61,129.57,27.1]
[1743214261330,8.63807708,129.6,129.57,27.1]
[1743214261531,7.7203,129.59,129.57,27.1]
[1743214261731,8.63807708,129.6,129.56,281.56]
[1743214262229,7.721,129.58,129.57,0.02943656]
[1743214263334,0.05132425,129.59,129.57,0.02943656]
[1743214263929,7.77172425,129.59,129.57,0.02943656]
[1743214268041,7.7209,129.58,129.57,0.02943656]
[1743214271028,16.35897708,129.58,129.57,0.02943656]
[1743214271229,7.7226,129.56,129.54,27.1]
[1743214272035,7.7227,129.55,129.54,27.1]
[1743214280040,7.77162878,129.56,129.54,27.1]
[1743214280942,7.77162878,129.56,129.54,27.12]
[1743214283654,7.7227,129.55,129.54,27.12]
[1743214284347,7.77152878,129.56,129.54,27.12]
[1743214284651,0.04922878,129.56,129.54,27.12]
[1743214285957,7.7227,129.55,129.54,27.12]
[1743214287157,8.63807708,129.55,129.5,8.63807708]
[1743214288354,7.7244,129.53,129.5,8.63807708]
[1743214288756,7.77318444,129.53,129.5,8.63807708]
[1743214288953,7.77318444,129.53,129.5,16.36367708]
[1743214289153,7.77318444,129.53,129.51,27.12]
[1743214289654,7.77318444,129.53,129.51,35.75807708]
[1743214292158,0.04878444,129.53,129.51,35.75807708]
[1743214293160,0.04878444,129.53,129.52,8.63807708]
[1743214293562,0.04878444,129.53,129.52,16.36257708]
[1743214293760,0.04878444,129.53,129.52,8.63807708]
[1743214301463,0.04878444,129.53,129.51,43.48287708]
[1743214302566,0.04878444,129.53,129.51,35.75807708]
[1743214302966,0.04878444,129.53,129.51,27.12]
[1743214303169,7.77268444,129.53,129.51,27.12]
[1743214305066,7.7245,129.52,129.51,27.12]
[1743214305472,7.7245,129.52,129.49,35.75807708]
[1743214306265,7.7252,129.51,129.49,35.75807708]
[1743214306872,7.7257,129.5,129.49,8.63807708]
[1743214307073,7.7257,129.5,129.49,35.75807708]
[1743214307473,7.7254,129.51,129.49,35.75807708]
[1743214309576,7.7247,129.52,129.49,35.75807708]
[1743214310776,7.7247,129.52,129.49,43.48427708]
[1743214312278,0.04878444,129.53,129.51,8.63807708]
[1743214314080,0.04878444,129.53,129.51,16.36307708]
[1743214315473,0.04878444,129.53,129.52,27.12]
[1743214319276,7.77268444,129.53,129.52,27.12]
[1743214319477,8.68686152,129.53,129.5,27.12]
[1743214319772,7.7248,129.52,129.5,27.12]
[1743214320579,7.77268444,129.53,129.5,35.75807708]
[1743214320879,0.04878444,129.53,129.51,8.63807708]
[1743214321273,7.77268444,129.53,129.51,8.63807708]
[1743214321469,364.0,129.64,129.52,8.63807708]
[1743214321675,8.63807708,129.62,129.57,8.63807708]
[1743214321869,8.63807708,129.62,129.57,35.75807708]
[1743214321870,42.94991478,129.59,129.57,35.75807708]
[1743214322375,42.94991478,129.59,129.57,43.47947708]
[1743214322574,43.00479852,129.59,129.57,43.52826152]
[1743214323980,43.00479852,129.59,129.58,8.63807708]
[1743214324178,43.00479852,129.59,129.58,16.35897708]
[1743214325383,371.7176,129.64,129.6,7.7192]
[1743214325583,372.63807708,129.64,129.61,27.12]
[1743214326483,7.7181,129.63,129.61,27.17388606]
[1743214326984,372.68868363,129.64,129.61,27.17388606]
[1743214327176,364.05060655,129.64,129.61,27.17388606]
[1743214327381,371.76810655,129.64,129.61,27.17388606]
[1743214336195,7.718,129.63,129.61,27.17388606]
[1743214344498,16.40628363,129.64,129.61,27.17388606]
[1743214344693,7.76820655,129.64,129.61,34.89298606]
[1743214345300,0.05060655,129.64,129.61,34.89298606]
[1743214346403,7.76820655,129.64,129.61,27.17388606]
[1743214347406,7.718,129.63,129.61,27.17388606]
[1743214348209,0.05060655,129.64,129.61,27.17388606]
[1743214348507,8.68868363,129.64,129.61,27.17388606]
[1743214349109,7.7185,129.62,129.61,27.17388606]
[1743214350504,7.7181,129.63,129.61,27.17388606]
[1743214356117,7.7185,129.62,129.61,27.17388606]
[1743214358211,7.7185,129.62,129.61,0.05388606]
[1743214358411,7.7206,129.59,129.56,263.37807708]
[1743214358613,8.63807708,129.59,129.56,254.74]
[1743214358813,7.7215,129.57,129.56,27.1]
[1743214362114,7.7221,129.56,129.55,0.04978212]
[1743214362313,7.7221,129.56,129.55,27.14978212]
[1743214362513,7.7221,129.56,129.55,0.04978212]
[1743214362914,0.04883215,129.58,129.55,0.04978212]
[1743214363114,0.04883215,129.58,129.56,27.1]
[1743214363720,7.7215,129.57,129.56,27.1]
[1743214370815,7.7221,129.56,129.55,0.04978212]
[1743214371121,7.7221,129.56,129.55,27.14978212]
[1743214371328,7.7221,129.56,129.55,0.04978212]
[1743214372124,7.7218,129.57,129.55,0.04978212]
[1743214372329,8.68690923,129.58,129.55,0.04978212]
[1743214372829,7.7215,129.57,129.55,0.04978212]
[1743214373128,8.68690923,129.58,129.55,0.04978212]
[1743214373328,7.7215,129.57,129.55,0.04978212]
[1743214373930,7.7221,129.56,129.55,0.04978212]
[1743214386436,7.76993215,129.58,129.55,8.6878592]
[1743214386740,0.04883215,129.58,129.56,35.73807708]
[1743214386940,0.04883215,129.58,129.56,43.46017708]
[1743214389638,0.04883215,129.58,129.56,35.73807708]
[1743214390537,0.04883215,129.58,129.56,43.45997708]
[1743214392738,374.73747869,129.65,129.57,8.63807708]
[1743214393044,8.63807708,129.63,129.58,8.63807708]
[1743214393244,8.63807708,129.63,129.59,27.1]
[1743214393441,7.7194,129.61,129.59,27.1]
[1743214393646,8.63807708,129.61,129.59,27.1]
[1743214394037,8.69024134,129.61,129.59,27.15565717]
[1743214394245,7.7197,129.6,129.59,27.15565717]
[1743214395445,7.77156426,129.61,129.59,27.15565717]
[1743214397848,7.7197,129.6,129.59,27.15565717]
[1743214400658,7.77156426,129.61,129.59,27.15565717]
[1743214402956,0.05216426,129.61,129.59,35.79373425]
[1743214403255,8.63807708,129.66,129.6,8.63807708]
[1743214403549,8.63807708,129.66,129.61,8.63807708]
[1743214403755,7.7168,129.65,129.62,27.1]
[1743214404443,7.76981864,129.65,129.62,27.15335892]
[1743214405455,7.7177,129.64,129.62,27.15335892]
[1743214405655,0.05301864,129.65,129.62,27.15335892]
[1743214406057,7.7179,129.63,129.62,27.15335892]
[1743214406251,16.35597708,129.63,129.62,27.15335892]
[1743214406458,16.35597708,129.63,129.62,0.05335892]
[1743214422782,7.7197,129.6,129.59,27.08]
[1743214423080,8.63807708,129.61,129.58,27.08]
[1743214423279,8.63807708,129.6,129.58,27.08]
[1743214423481,7.7203,129.59,129.58,27.08]
[1743214428883,7.7203,129.59,129.57,0.05170839]
[1743214429085,7.7203,129.59,129.57,27.13170839]
[1743214430780,7.7209,129.58,129.57,27.13170839]
[1743214436186,7.7206,129.59,129.57,27.13170839]
[1743214437587,16.41101716,129.6,129.57,27.13170839]
[1743214437787,7.77294008,129.6,129.57,27.13170839]
[1743214438791,7.77294008,129.6,129.57,34.85310839]
[1743214438992,0.05294008,129.6,129.57,34.85310839]
[1743214439182,0.05294008,129.6,129.57,35.76978547]
[1743214439483,0.05294008,129.6,129.58,8.63807708]
[1743214440080,0.05294008,129.6,129.59,7.7203]
[1743214441089,0.05294008,129.6,129.58,8.63807708]
[1743214441388,0.05294008,129.6,129.57,43.49098547]
[1743214443684,0.05294008,129.6,129.57,35.76978547]
[1743214444192,7.77274008,129.6,129.57,35.76978547]
[1743214444592,8.69101716,129.6,129.57,27.13170839]
[1743214444793,8.63807708,129.59,129.57,27.13170839]
[1743214444994,7.7209,129.58,129.57,27.13170839]
[1743214445292,16.35897708,129.58,129.57,0.05170839]
[1743214445588,16.35897708,129.58,129.53,263.23807708]
[1743214445589,7.7233,129.54,129.53,254.6]
[1743214445791,7.7233,129.54,129.53,281.68]
[1743214448295,7.7233,129.54,129.53,254.6]
[1743214448490,7.7239,129.53,129.52,0.04571122]
[1743214453298,8.68778296,129.55,129.52,0.04571122]
[1743214453599,0.04970588,129.55,129.52,0.04571122]
[1743214454603,7.77260588,129.55,129.52,0.04571122]
[1743214457205,7.7233,129.54,129.52,0.04571122]
[1743214457396,0.04970588,129.55,129.52,16.4080883]
[1743214457603,0.04970588,129.55,129.54,8.63807708]
[1743214457902,0.04970588,129.55,129.54,35.73807708]
[1743214458298,21.33495577,129.62,129.54,35.73807708]
[1743214458501,12.69687869,129.62,129.58,8.63807708]
[1743214458804,7.7202,129.6,129.58,35.73807708]
[1743214459006,10.59747708,129.62,129.58,27.1]
[1743214459200,8.63807708,129.61,129.58,27.1]
[1743214459399,7.7197,129.6,129.59,0.05189942]
[1743214460101,16.35777708,129.6,129.59,0.05189942]
[1743214470406,16.35777708,129.6,129.59,9.942e-05]
[1743214470716,7.723,129.55,129.54,27.08]
[1743214472205,7.723,129.55,129.53,0.04351768]
[1743214472412,7.723,129.55,129.54,27.08]
[1743214473512,7.7233,129.54,129.53,27.12351768]
[1743214474216,7.7233,129.54,129.53,0.04351768]
[1743214474413,16.36137708,129.54,129.53,0.04351768]
[1743214475015,7.7253,129.51,129.48,7.7267]
[1743214475217,7.7253,129.51,129.49,27.08]
[1743214475417,8.63807708,129.53,129.49,27.08]
[1743214476319,7.7765159,129.52,129.49,27.08]
[1743214477119,7.7765159,129.52,129.49,34.8061]
[1743214477622,7.7765159,129.52,129.49,27.08]
[1743214478118,7.7252,129.51,129.49,27.08]
[1743214478821,7.7257,129.5,129.49,27.08]
[1743214481926,7.7257,129.5,129.49,27.1]
[1743214486025,7.7254,129.51,129.49,27.1]
[1743214487525,7.7765159,129.52,129.49,34.8263]
[1743214488421,7.7251,129.51,129.49,27.1]
[1743214489927,7.7764159,129.52,129.49,34.8263]
[1743214491322,7.7764159,129.52,129.5,16.36367708]
[1743214491323,0.0517159,129.52,129.5,16.36367708]
[1743214491926,7.7762159,129.52,129.5,16.36367708]
[1743214492128,7.7762159,129.52,129.5,8.63807708]
[1743214492434,7.7762159,129.52,129.49,43.46407708]
[1743214494732,7.7762159,129.52,129.49,34.826]
[1743214495128,0.0517159,129.52,129.5,7.7256]
[1743214498131,0.0517159,129.52,129.51,7.7251]
[1743214498332,0.0517159,129.52,129.51,16.36317708]
[1743214498634,8.63807708,129.57,129.51,8.63807708]
[1743214498835,7.7224,129.56,129.53,16.36157708]
[1743214499035,8.63807708,129.57,129.53,8.63807708]
[1743214499730,0.0543337,129.56,129.54,7.7746159]
[1743214499931,0.0543337,129.56,129.55,27.1]
[1743214500836,0.0543337,129.56,129.55,34.8227]
[1743214501739,0.0543337,129.56,129.55,43.46077708]
[1743214502642,7.7199,129.6,129.57,7.7213]
[1743214502835,7.7199,129.6,129.56,8.63807708]
[1743214503036,7.7203,129.59,129.58,27.08]
[1743214503241,8.63807708,129.61,129.58,27.08]
[1743214503539,8.687729,129.61,129.58,27.1329739]
[1743214503739,7.72,129.6,129.58,27.1329739]
[1743214504744,7.7203,129.59,129.58,27.1329739]
[1743214506642,7.7227,129.55,129.54,254.72]
[1743214506851,8.63807708,129.57,129.54,281.8]
[1743214507241,7.7223,129.56,129.54,281.8]
[1743214507745,7.77479908,129.56,129.54,281.8530757]
[1743214508446,7.7227,129.55,129.54,281.8530757]
[1743214508745,0.05249908,129.56,129.54,281.8530757]
[1743214509341,0.05249908,129.56,129.55,8.63807708]
[1743214509647,16.35727708,129.61,129.55,8.63807708]
[1743214509940,16.35727708,129.61,129.57,8.63807708]
[1743214510247,16.35727708,129.61,129.58,27.08]
[1743214510743,16.41650509,129.61,129.58,27.13177019]
[1743214511340,16.41650509,129.61,129.58,34.85247019]
[1743214511541,0.05922801,129.61,129.58,34.85247019]
[1743214512450,0.05922801,129.61,129.58,27.13177019]
[1743214512745,7.77832801,129.61,129.58,27.13177019]
[1743214513550,7.77832801,129.61,129.58,35.76984727]
[1743214514948,7.7198,129.6,129.58,35.76984727]
[1743214515650,7.7203,129.59,129.58,35.76984727]
[1743214515842,7.7203,129.59,129.58,27.13177019]
[1743214523253,7.72,129.6,129.58,27.13177019]
[1743214526054,7.7203,129.59,129.58,27.13177019]
[1743214528557,7.72,129.6,129.58,27.13177019]
[1743214531557,7.7203,129.59,129.58,0.05177019]
[1743214531755,8.63807708,129.6,129.54,254.72]
[1743214531756,10.76887708,129.6,129.54,254.72]
[1743214531963,8.63807708,129.56,129.54,281.8]
[1743214532763,7.7227,129.55,129.54,281.8]
[1743214532961,7.7227,129.55,129.54,254.77380459]
[1743214533359,8.69727976,129.56,129.54,254.77380459]
[1743214533559,8.63807708,129.55,129.54,0.05380459]
[1743214534263,16.36077708,129.55,129.54,0.05380459]
[1743214542163,7.7253,129.51,129.48,270.96437708]
[1743214542369,7.7253,129.51,129.49,27.08]
[1743214543269,7.77840682,129.51,129.49,27.08]
[1743214544363,7.77840682,129.51,129.48,270.96437708]
[1743214544569,7.77840682,129.51,129.49,27.08]
[1743214545173,7.7258,129.5,129.49,27.08]
[1743214552574,7.7263,129.49,129.48,254.6]
[1743214552774,7.7263,129.49,129.48,281.68]
[1743214555472,7.7263,129.49,129.48,254.6]
[1743214555680,7.7263,129.49,129.48,281.68]
[1743214557877,7.7263,129.49,129.48,254.6]
[1743214558079,7.7263,129.49,129.48,281.68]
[1743214558279,7.7275,129.47,129.44,8.63807708]
[1743214558577,7.77830605,129.47,129.45,27.08]
[1743214559375,7.77830605,129.47,129.44,8.63807708]
[1743214559576,7.77830605,129.47,129.45,27.08]
[1743214560282,0.05080605,129.47,129.45,27.08]
[1743214560778,8.68888313,129.47,129.42,263.39807708]
[1743214560972,8.63807708,129.44,129.42,254.76]
[1743214561171,8.63807708,129.44,129.42,281.84]
[1743214561375,7.7298,129.43,129.42,281.84]
[1743214561977,16.42489857,129.44,129.42,254.76]
[1743214562181,7.78682149,129.44,129.42,254.76]
[1743214562381,0.05732149,129.44,129.42,254.76]
[1743214563179,7.7298,129.43,129.42,254.76]
[1743214563884,0.05732149,129.44,129.42,254.76]
[1743214565085,7.78662149,129.44,129.42,254.76]
[1743214567986,7.7298,129.43,129.42,254.76]
[1743214568990,8.63807708,129.43,129.39,27.12]
[1743214569180,8.63807708,129.42,129.39,27.12]
[1743214569776,8.63807708,129.41,129.39,27.12]
[1743214570180,8.69035022,129.41,129.39,27.12]
[1743214570890,0.05227314,129.41,129.39,27.12]
[1743214571084,0.05227314,129.41,129.39,34.8522]
[1743214572390,0.05227314,129.41,129.39,27.12]
[1743214574086,0.05227314,129.41,129.39,34.8522]
[1743214575291,0.05227314,129.41,129.39,27.12]
[1743214575592,7.78347314,129.41,129.39,27.12]
[1743214576787,8.69035022,129.41,129.36,263.49807708]
[1743214576996,8.63807708,129.4,129.37,27.16]
[1743214577487,7.7326,129.39,129.37,27.16]
[1743214578689,7.7329,129.38,129.37,27.16]
[1743214582591,7.7334,129.37,129.36,254.86]
[1743214582795,7.7334,129.37,129.36,282.04]
[1743214584294,7.78933123,129.38,129.36,282.04]
[1743214588201,0.05623123,129.38,129.36,282.04]
[1743214589599,7.78913123,129.38,129.36,282.04]
[1743214591503,7.78913123,129.38,129.36,282.0]
[1743214598405,16.42720831,129.38,129.36,282.0]
[1743214600211,0.05623123,129.38,129.36,290.63807708]
[1743214600705,0.05623123,129.38,129.37,7.7334]
[1743214601098,8.63807708,129.42,129.37,8.63807708]
[1743214601299,16.36837708,129.43,129.39,7.7318]
[1743214601511,16.36837708,129.43,129.4,27.12]
[1743214601707,8.63807708,129.43,129.4,27.12]
[1743214602203,8.68674688,129.43,129.4,27.16905173]
[1743214603002,7.7306,129.42,129.4,27.16905173]
[1743214603710,7.731,129.41,129.4,27.16905173]
[1743214611809,16.36907708,129.41,129.4,27.16905173]
[1743214612824,7.731,129.41,129.4,27.16905173]
[1743214613513,16.36907708,129.41,129.4,27.16905173]
[1743214614114,8.68674688,129.43,129.4,27.16905173]
[1743214614618,16.41714688,129.43,129.4,27.16905173]
[1743214615114,8.63807708,129.42,129.4,27.16905173]
[1743214616112,16.36907708,129.41,129.4,27.16905173]
[1743214616418,16.36907708,129.41,129.4,0.04905173]
[1743214627724,8.63807708,129.41,129.37,27.12]
[1743214627925,8.63807708,129.39,129.37,27.12]
[1743214628420,16.37067708,129.39,129.37,27.12]
[1743214628733,16.42337963,129.39,129.37,27.12]
[1743214630931,0.05270255,129.39,129.37,34.8533]
[1743214635327,7.78500255,129.39,129.37,27.12]
[1743214637038,0.05270255,129.39,129.37,34.8534]
[1743214637932,7.78500255,129.39,129.37,27.12]
[1743214638938,7.78500255,129.39,129.37,34.8534]
[1743214639239,0.05270255,129.39,129.37,35.75807708]
[1743214639736,0.05270255,129.39,129.38,7.7328]
[1743214641540,0.05270255,129.39,129.37,43.49127708]
[1743214641740,0.05270255,129.39,129.37,34.8532]
[1743214642438,7.78500255,129.39,129.37,34.8532]
[1743214644541,0.05270255,129.39,129.37,34.8532]
[1743214646745,0.05270255,129.39,129.37,27.12]
[1743214647544,7.78500255,129.39,129.37,27.12]
[1743214652243,7.7328,129.38,129.37,27.12]
[1743214654249,7.7336,129.37,129.35,255.0]
[1743214654543,7.7336,129.37,129.36,27.1]
[1743214657755,0.05270255,129.39,129.36,27.1]
[1743214658053,0.05270255,129.39,129.36,43.47167708]
[1743214658753,7.78520255,129.39,129.36,43.47167708]
[1743214659247,8.69077963,129.39,129.36,27.1]
[1743214660752,7.7332,129.38,129.36,27.1]
[1743214660954,8.69077963,129.39,129.36,35.73807708]
[1743214660955,0.05270255,129.39,129.36,35.73807708]
[1743214661155,0.05270255,129.39,129.37,8.63807708]
[1743214661952,0.05270255,129.39,129.38,7.7328]
[1743214662956,0.05270255,129.39,129.37,16.37117708]
[1743214663157,0.05270255,129.39,129.37,7.7331]
[1743214669958,0.05270255,129.39,129.38,16.37087708]
[1743214670158,8.63807708,129.45,129.38,8.63807708]
[1743214670356,42.94991478,129.46,129.42,8.63807708]
[1743214670557,42.94991478,129.46,129.43,27.12]
[1743214670863,50.67831478,129.46,129.43,34.8495]
[1743214671256,50.72718807,129.46,129.43,34.89904944]
[1743214671455,50.72718807,129.46,129.43,27.16954944]
[1743214671656,7.7288,129.45,129.43,27.16954944]
[1743214673457,7.77707329,129.46,129.43,34.89934944]
[1743214674760,0.04887329,129.46,129.44,7.7291]
[1743214675158,0.04887329,129.46,129.43,35.80762652]
[1743214675355,0.04887329,129.46,129.43,43.53712652]
[1743214675565,0.04887329,129.46,129.43,35.80762652]
[1743214676462,7.77697329,129.46,129.43,35.80762652]
[1743214677364,7.77697329,129.46,129.43,43.53712652]
[1743214680769,0.04887329,129.46,129.44,8.63807708]
[1743214681372,0.04887329,129.46,129.44,16.36697708]
[1743214684675,0.04887329,129.46,129.45,7.7286]
[1743214686960,364.0,129.54,129.45,8.63807708]
[1743214686961,8.63807708,129.51,129.45,8.63807708]
[1743214687166,7.7252,129.51,129.47,8.63807708]
[1743214687473,7.7252,129.51,129.48,35.75807708]
[1743214688073,7.77410671,129.51,129.48,35.81159416]
[1743214688273,7.77410671,129.51,129.48,43.53799416]
[1743214692979,0.04890671,129.51,129.48,35.81159416]
[1743214693277,0.04890671,129.51,129.5,8.63807708]
[1743214693869,0.04890671,129.51,129.5,16.36377708]
[1743214694881,0.04890671,129.51,129.5,7.7257]
[1743214696279,8.68698379,129.51,129.48,0.05351708]
[1743214696485,8.63807708,129.5,129.49,27.1]
[1743214696676,7.7263,129.49,129.48,0.05351708]
[1743214696876,16.36437708,129.49,129.48,0.05351708]
[1743214705282,0.04890671,129.51,129.48,0.05351708]
[1743214705675,0.04890671,129.51,129.49,8.63807708]
[1743214705880,0.04890671,129.51,129.5,34.8457]
[1743214706083,0.04890671,129.51,129.5,27.12]
[1743214707183,0.04890671,129.51,129.5,43.48377708]
[1743214707386,364.0,129.55,129.5,35.75807708]
[1743214707685,10.66627708,129.56,129.52,8.63807708]
[1743214707880,7.7229,129.55,129.53,27.12]
[1743214708485,7.78094875,129.55,129.53,27.17492933]
[1743214709590,7.7233,129.54,129.53,27.17492933]
[1743214710384,7.78094875,129.55,129.53,27.17492933]
[1743214710584,8.63807708,129.54,129.53,27.17492933]
[1743214711092,16.36137708,129.54,129.53,0.05492933]
[1743214711488,18.51727708,129.54,129.53,0.05492933]
[1743214711688,8.63807708,129.53,129.51,27.14]
[1743214712790,7.7245,129.52,129.51,27.18928243]
[1743214714393,16.36257708,129.52,129.51,0.04928243]
[1743214715286,8.63807708,129.52,129.48,27.12]
[1743214715487,8.63807708,129.49,129.48,27.12]
[1743214716791,16.36437708,129.49,129.48,27.12]
[1743214718901,7.7269,129.48,129.47,27.21120571]
[1743214719194,16.36497708,129.48,129.47,27.21120571]
[1743214720596,16.36497708,129.48,129.47,0.05120571]
[1743214720799,7.7292,129.44,129.43,254.88]
[1743214721000,7.7292,129.44,129.43,282.04]
[1743214722604,7.7292,129.44,129.43,282.08]
[1743214729000,7.7292,129.44,129.43,282.04]
[1743214729505,16.36727708,129.44,129.43,254.88]
[1743214737819,7.7292,129.44,129.43,254.88]
[1743214741623,7.7298,129.43,129.42,27.14]
[1743214750636,7.7295,129.44,129.42,27.14]
[1743214750825,0.05413961,129.45,129.43,8.63807708]
[1743214751229,0.05413961,129.45,129.44,7.7292]
[1743214751628,0.05413961,129.45,129.44,16.36727708]
[1743214751936,0.05413961,129.45,129.44,8.63807708]
[1743214752234,0.05413961,129.45,129.42,35.77807708]
[1743214752435,7.7298,129.44,129.42,27.14]
[1743214754625,7.7298,129.43,129.42,27.14]
[1743214757634,8.69221669,129.45,129.42,27.14]
[1743214757837,0.05413961,129.45,129.44,8.63807708]
[1743214758138,7.7272,129.48,129.45,7.7283]
[1743214758337,7.7272,129.48,129.46,27.1]
[1743214759138,7.78420197,129.48,129.46,27.15077215]
[1743214761141,7.7275,129.47,129.46,27.15077215]
[1743214765041,8.63807708,129.47,129.41,8.63807708]
[1743214765243,8.63807708,129.45,129.42,27.1]
[1743214766144,7.7292,129.44,129.42,27.1]
[1743214769937,0.05030458,129.45,129.42,35.73807708]
[1743214770142,0.05030458,129.45,129.44,8.63807708]
[1743214770442,19.37555577,129.5,129.44,263.51807708]
[1743214770642,19.37555577,129.5,129.45,35.79807708]
[1743214770837,7.7264,129.49,129.46,7.7277]
[1743214771547,7.77806354,129.49,129.46,16.4216937]
[1743214773743,7.77806354,129.49,129.46,7.78361662]
[1743214775553,0.05166354,129.49,129.46,7.78361662]
[1743214776358,0.05166354,129.49,129.47,7.7274]
[1743214776555,0.05166354,129.49,129.48,27.12]
[1743214779257,16.41604062,129.49,129.48,27.12]
[1743214779560,8.68974062,129.49,129.46,27.17591662]
[1743214779761,16.36527708,129.48,129.46,27.17591662]
[1743214779957,0.05166354,129.49,129.46,27.17591662]
[1743214780560,0.05166354,129.49,129.47,7.727]
[1743214780760,0.05166354,129.49,129.46,27.17591662]
[1743214781462,0.05166354,129.49,129.46,35.8139937]
[1743214781648,0.05166354,129.49,129.48,8.63807708]
[1743214781855,0.05166354,129.49,129.48,16.36497708]
[1743214783458,0.05166354,129.49,129.46,35.8139937]
[1743214784163,0.05166354,129.49,129.46,27.17591662]
[1743214784571,7.7272,129.48,129.46,27.17591662]
[1743214786961,7.77816354,129.49,129.46,27.17591662]
[1743214787463,0.05166354,129.49,129.46,35.8139937]
[1743214787865,0.05166354,129.49,129.47,7.7271]
[1743214788167,7.77796354,129.49,129.46,35.8139937]
[1743214789162,7.77796354,129.49,129.46,43.5416937]
[1743214790072,0.05166354,129.49,129.47,7.7272]
[1743214791167,7.77796354,129.49,129.46,43.5417937]
[1743214794775,7.77796354,129.49,129.47,7.7274]
[1743214794969,0.05166354,129.49,129.47,7.7274]
[1743214795671,7.77796354,129.49,129.47,7.7274]
[1743214795871,7.77796354,129.49,129.46,43.5417937]
[1743214802685,7.7269,129.48,129.46,35.8139937]
[1743214803889,7.7275,129.47,129.46,35.8139937]
[1743214804190,7.7275,129.47,129.46,27.17591662]
[1743214804780,7.7271,129.48,129.46,27.17591662]
[1743214805992,7.77806354,129.49,129.46,34.90391662]
[1743214806383,0.05166354,129.49,129.46,35.8139937]
[1743214807688,0.05166354,129.49,129.46,27.17591662]
[1743214808791,7.7275,129.47,129.46,27.17591662]
[1743214809592,7.7275,129.47,129.46,27.15591662]
[1743214811792,7.7275,129.47,129.46,0.05591662]
[1743214812095,7.7275,129.47,129.46,27.15591662]
[1743214813584,16.36557708,129.47,129.46,0.05591662]
[1743214819092,16.36557708,129.47,129.46,1.662e-05]
[1743214826811,7.7306,129.42,129.4,8.63807708]
[1743214827012,7.7306,129.42,129.41,27.1]
[1743214828003,8.69585772,129.43,129.41,27.1]
[1743214828207,8.63807708,129.43,129.41,27.1]
[1743214828410,8.69440244,129.43,129.41,27.1]
[1743214828914,7.7304,129.42,129.41,27.1]
[1743214829520,7.7316,129.4,129.39,254.88]
[1743214830721,7.7316,129.4,129.39,281.98]
[1743214838624,7.7316,129.4,129.39,254.88]
[1743214839719,7.7322,129.39,129.38,27.1]
[1743214840822,8.63807708,129.39,129.34,8.63807708]
[1743214841023,8.63807708,129.39,129.35,27.1]
[1743214841224,0.05317793,129.38,129.35,27.1]
[1743214841425,0.05317793,129.38,129.33,254.98]
[1743214841426,8.63807708,129.37,129.33,254.98]
[1743214841621,8.63807708,129.37,129.34,27.1]
[1743214842027,7.7346,129.35,129.34,27.1]
[1743214842221,364.0,129.34,129.26,1.3453955]
[1743214842426,7.7388,129.28,129.26,1.3453955]
[1743214842719,7.7388,129.28,129.25,53.26064887]
[1743214842926,7.79677718,129.28,129.25,53.26064887]
[1743214843335,7.7394,129.27,129.25,44.62257179]
[1743214843620,8.69605426,129.28,129.25,44.62257179]
[1743214846130,8.69605426,129.28,129.25,27.1]
[1743214847932,0.05797718,129.28,129.25,27.1]
[1743214848126,0.05797718,129.28,129.25,35.73807708]
[1743214849028,0.05797718,129.28,129.25,27.1]
[1743214849431,8.69605426,129.28,129.25,27.1]
[1743214851936,8.69605426,129.28,129.23,8.63807708]
[1743214852233,8.69605426,129.28,129.24,27.12]
[1743214853732,8.63807708,129.27,129.24,27.12]
[1743214854136,8.69605426,129.28,129.24,34.8611]